{"text_format":"1","workbook":"xlsx","n_sheets":4,"sheets":["Sheet1","Sheet2","Sheet3","Sheet4"],"not_rendered":{"charts":1,"images":0,"macros":1,"external_links":0,"defined_names":0,"comments":0,"pivot_tables":0},"unopened":[],"bounds":{"document_bytes":16777216,"sheet_cells":100000,"rows_first":2000,"rows_last":500,"rows_between":2000,"halvings":0,"cell_chars":16384,"cell_head_chars":4096},"cells_cut":0,"cells_raw":0,"read":"whole","date_system":"1900"}

{"sheet":"Sheet1","index":0,"n_rows":207,"n_cols":6,"rows_kept":207,"cut":false,"hidden":false,"merged":[]}
[]
["#",null,"First Name","Last Name","Company Name","Country"]
[2,null,{"$f":"INDEX(Table1[],A3,0)","v":"Raekwon"},"Irons","Springfield Nuclear Power Plant","Algeria"]
[]
[]
[]
[null,null,"First Name","Last Name","Company Name","Country"]
[null,null,"Homer","Dayton","Quantum Airlines","Albania"]
[null,null,"Raekwon","Irons","Springfield Nuclear Power Plant","Algeria"]
[null,null,"Darien","Osullivan","Hishii Industries","Andorra"]
[null,null,"Talan","Arce","North Central Positronics","Antigua and Barbuda"]
[null,null,"Kristian","Delarosa","QWERTY Logistics","Armenia"]
[null,null,"Dillion","Mcdonough","Thrift Bank","Armenia"]
[null,null,"Luneda","Gee","Sixty Second Avenue","Armenia"]
[null,null,"Mahsa","Belcher","Atlantic Northern","Australia"]
[null,null,"Nikki","Carney","Blammo Corp","Australia"]
[null,null,"Dwain","Sandlin","LexCorp","Azerbaijan"]
[null,null,"Fonda","Nowlin",null,"Bahrain"]
[null,null,"Kaylin","Gifford","Soar Airlines","Bahrain"]
[null,null,"Kester","Moen","Trans Global Airlines","Barbados"]
[null,null,"Marlena","Barker","Axis Chemical Co.","Belarus"]
[null,null,"Joslyn","Wu","Oceanic Airlines","Benin"]
[null,null,"Jonah","Cason","Buy and Large Corporation","Bhutan"]
[null,null,"Falkner","Draper","Chez Quis","Bhutan"]
[null,null,"Jaleel","Frye","Sonky Rubber Goods","Bolivia"]
[null,null,"Walker","Michaels","Trans Regional Airlines","Bolivia"]
[null,null,"Beau","Styles","Zorin Industries","Bosnia and Herzegovina"]
[null,null,"Tyrone","Freund","Cyberdyne Systems","Bosnia and Herzegovina"]
[null,null,"Gaige","Ainsworth","Onion Pacific Railroad","Botswana"]
[null,null,"Chava","Mcvay","Initech","Bulgaria"]
[null,null,"Drew","Kelsey","Three Waters","Burkina Faso"]
[null,null,"Petra","Beavers","Primatech","Burundi"]
[null,null,"Ronnie","Gable","Edgars Industries","Canada"]
[null,null,"Winnie","Belton","QuantCo","Central African Republic"]
[null,null,"Ernie","Ramon","Wernham Hogg","Chad"]
[null,null,"Willis","Head","Gadgetron","Chad"]
[null,null,"Britney","Mull","KrebStar","Chad"]
[null,null,"Harding","Vazquez","Atlantic Northern","Chile"]
[null,null,"Vester","Stack","North Central Positronics","China"]
[null,null,"Wyatt","Pacheco","Mainway Toys","Costa Rica"]
[null,null,"Roberta","Ibarra","Globex Corporation","Cote d'Ivoire"]
[null,null,"Ellard","Griswold","The Hanso Foundation","Cote d'Ivoire"]
[null,null,"Abia","Yi","Blarg Factory","Croatia"]
[null,null,"Cece","Sousa","Northern & Southern Railway","Cuba"]
[null,null,"Deanne","Coyle","Sonky Rubber Goods","Cyprus"]
[null,null,"Kame","Burnside","Shinra Electric Power Company","Czech Republic"]
[null,null,"Brian","Bullock","Colonial Movers","Denmark"]
[null,null,"Lona","Saxton","North Central Positronics","Djibouti"]
[null,null,"Shannon","Moody","Wallaby Airlines","Dominica"]
[null,null,"Aldan","Squires","Onion Pacific Railroad","Dominican Republic"]
[null,null,"Chinue","Sandoval","Ankh-Sto Associates","Dominican Republic"]
[null,null,"Magnolia","Royer","North Central Positronics","East Timor"]
[null,null,"Bryon","Dodds","Extensive Enterprise","Ecuador"]
[null,null,"Brisa","Sawyers","Northern & Southern Railway","Egypt"]
[null,null,"Freddie","Guess","Tip Top Cafe","Egypt"]
[null,null,"Jami","Logsdon","KrebStar","El Salvador"]
[null,null,"Filomena","Meadows","Wallaby Airlines","El Salvador"]
[null,null,"Findlay","Browne","Slate Rock and Gravel Company","El Salvador"]
[null,null,"Emiko","Mayer","Liandri Mining Corporation","Equatorial Guinea"]
[null,null,"Keiko","Bledsoe","Sirius Cybernetics Corporation","Eritrea"]
[null,null,"Caden","Mckeown","Water and Power","Ethiopia"]
[null,null,"Chad","Daniels","Fabrikam Corporation","Ethiopia"]
[null,null,"Berry","Parnell","Canada World Airways","Federated States of Micronesia"]
[null,null,"Jordon","Underwood","Extensive Enterprise","Federated States of Micronesia"]
[null,null,"Kilenya","Duval","Vandelay Industries","Federated States of Micronesia"]
[null,null,"Gabriela","Grantham","TranCon Airways","Fiji"]
[null,null,"Savana","Pinson","Nordyne Defense Dynamics","France"]
[null,null,"Mervyn","Simonson","Paradise Airlines","France"]
[null,null,"Louie","Bartley","Sirius Cybernetics Corporation","Gabon"]
[null,null,"Kalyca","Rand","NorthAm Robotics","Gabon"]
[null,null,"Vernon","Bateman","Colonial Movers","Gabon"]
[null,null,"Buddy","Fredericks","Global Airways","Gambia"]
[null,null,"Jaylynn","Higdon","Transworld Consortium","Georgia"]
[null,null,"Paige","Cornwell","TetraCorp","Grenada"]
[null,null,"Gino","Hurst","Keedsler Motors","Guatemala"]
[null,null,"Codie","Acker","Colonial Movers","Guinea"]
[null,null,"Cheryl","Allen","Columbia Airlines","Guinea"]
[null,null,"Koby","Coward","Foo Bars","Guinea-Bissau"]
[null,null,"Leila","Witte","Chez Quis","Guyana"]
[null,null,"Ajala","Battle","Culdee Fell Railway","Guyana"]
[null,null,"Lazaro","Bravo","Edgars Industries","Haiti"]
[null,null,"Everley","Archie","Smith and Co.","Haiti"]
[null,null,"Margie","Stuckey","Buy and Large Corporation","Haiti"]
[null,null,"Verona","Shephard","Primatech","Hungary"]
[null,null,"Axel","Waugh","Charles Townsend Agency","Iceland"]
[null,null,"Bikita","Janssen","VersaLife Corporation","Indonesia"]
[null,null,"Judy","Turney","Roxxon","Indonesia"]
[null,null,"Quincy","Boyd","Ewing Oil","Iran"]
[null,null,"Bob","Potter","Parrish Communications","Israel"]
[null,null,"Scott","Metzler","North Central Positronics","Israel"]
[null,null,"Arama","Neel","Northern & Southern Railway","Israel"]
[null,null,"Simone","Wisniewski","Smith and Co.","Israel"]
[null,null,"Susie","Daly","Tip Top Cafe","Israel"]
[null,null,"Giovanny","Starling","Cathedral Software","Jordan"]
[null,null,"Marceline","Simpson","Caliban Industries","Jordan"]
[null,null,"Milan","Babb","Edgars Industries","Kazakhstan"]
[null,null,"Holiday","Alexander","Demo Company","Kenya"]
[null,null,"Kalinda","Jeter","Massive Dynamic","Korea (North)"]
[null,null,"Mauricio","Boykin","The Dot Grill","Korea (South)"]
[null,null,"Mekhi","Mayhew","North Western Railway","Kuwait"]
[null,null,"Clarence","Dietz","Industrial Automation","Laos"]
[null,null,"Darla","Crutcher","Trans Global Airlines","Lebanon"]
[null,null,"Daisha","Kyle","Mishima Zaibatsu","Lebanon"]
[null,null,"Addie","Sorensen","Sheinhardt Wig Company","Lesotho"]
[null,null,"Cira","Herr","Massive Dynamic","Liberia"]
[null,null,"Ivana","Valerio","Data Systems","Lithuania"]
[null,null,"Sharlene","Florez","Universal Exports","Lithuania"]
[null,null,"Meyer","Amaral","Fake Brothers","Lithuania"]
[null,null,"Hadley","Tallent","Sombra Corporation","Luxembourg"]
[null,null,"Marge","Reyna","Rouster and Sideways","Madagascar"]
[null,null,"Ron","Laws","Allied Biscuit","Madagascar"]
[null,null,"Hanley","Gable","Virtucon","Maldives"]
[null,null,"Misty","Vanover","St. Anky Beer","Mali"]
[null,null,"Selma","Waldrop","Ewing Oil","Malta"]
[null,null,"Van","Sessions","Slate Rock and Gravel Company","Mauritania"]
[null,null,"Adah","Boisvert","Globex Corporation","Mauritania"]
[null,null,"Ron","Cochran","Transworld Consortium","Mauritania"]
[null,null,"Sherlyn","Craft","Umbrella Corporation","Mauritania"]
[null,null,"Wayland","Gunderson","McMahon and Tate","Mauritius"]
[null,null,"Leatrix","Polk","Cathedral Software","Mauritius"]
[null,null,"Mekelle","Beauregard","Thrift Bank","Mauritius"]
[null,null,"Kalare","Hennessey","Minuteman Cafe","Mexico"]
[null,null,"Ansley","Magana","Biffco","Moldova"]
[null,null,"Eliza","Pack","Canada World Airways","Monaco"]
[null,null,"Elda","Burk","Trans Regional Airlines","Montenegro"]
[null,null,"Bernardine","Oldham","Carrys Candles","Morocco"]
[null,null,"Johnathan","Locke","Biffco","Morocco"]
[null,null,"Adara","Liu","Petrox Oil Company","Myanmar (Burma)"]
[null,null,"Madalynn","Coward","Uplink Corporation","Namibia"]
[null,null,"Mahsa","Hiatt","Allied Biscuit","Nauru"]
[null,null,"Pierce","Bollinger","Industrial Automation","Nepal"]
[null,null,"Orin","Billings","Trans Global Airlines","Nepal"]
[null,null,"Hue","Main","Blue Sun Corporation","Niger"]
[null,null,"Eloise","Vargas","General Forge and Foundry","Niger"]
[null,null,"Colin","Osburn","Shinra Electric Power Company","Norway"]
[null,null,"Nessa","Word","Trade Federation","Norway"]
[null,null,"Jayson","Goetz","North Central Positronics","Panama"]
[null,null,"Leander","Galvin","Nordyne Defense Dynamics","Paraguay"]
[null,null,"Ada","Wick","Trans Allied Airlines","Philippines"]
[null,null,"Delbert","Gillespie","North Western Railway","Philippines"]
[null,null,"Lamar","Dietrich","Zevo Toys","Poland"]
[null,null,"Nigel","Boren","United Robotronics","Portugal"]
[null,null,"Moesha","Gragg","Atlantic Corporation","Qatar"]
[null,null,"Louella","Nguyen","Corellian Engineering Corporation","Qatar"]
[null,null,"Maximus","Orlando","Culdee Fell Railway","Qatar"]
[null,null,"Jeri","Picard","Spade and Archer","Russia"]
[null,null,"Malinda","Cassell","Mainco","Russia"]
[null,null,"Ady","Brinkley","Vandelay Industries","Russia"]
[null,null,"Sylvester","Otto","Curious Goods","Russia"]
[null,null,"Jevon","Locklear","Canada World Airways","Rwanda"]
[null,null,"Claudine","Akin","Initech","Rwanda"]
[null,null,"Cassidy","Barrows","Union Aerospace Corporation","Saint Kitts and Nevis"]
[null,null,"Bela","Clay","Massive Dynamic","Saint Kitts and Nevis"]
[null,null,"Chaz","Dixon","Zorin Industries","Saint Lucia"]
[null,null,"Jaylin","Hope","Praxis Corporation","Saint Vincent and the Grenadines"]
[null,null,"Genesis","Delossantos","Zorg Industries","Saint Vincent and the Grenadines"]
[null,null,"Kate","Whelan","Trans Pacific Airlines","Samoa"]
[null,null,"Kester","Howard","BLAND Corporation","Samoa"]
[null,null,"Lauretta","Cross","Zorg Industries","San Marino"]
[null,null,"Kaylyn","Cranford","Minco","Sao Tome and Principe"]
[null,null,"Lilo","Higdon","Blammo Corp","Saudi Arabia"]
[null,null,"Jon","Witte","TriOptimum Corporation","Saudi Arabia"]
[null,null,"Adabel","Alford","Jupiter Mining Corporation","Senegal"]
[null,null,"Ardith","Leon","CC Corporation","Serbia"]
[null,null,"Mahalah","Ricker","The Dot Grill","Seychelles"]
[null,null,"Agola","Speight","Trade Federation","Sierra Leone"]
[null,null,"Kolina","Cartwright","McMahon and Tate","Sierra Leone"]
[null,null,"Lisle","Saylor","General Products","Singapore"]
[null,null,"Merle","Cyr","Acme Corp","Singapore"]
[null,null,"Kieran","House","Brown Streak Railroad","Slovakia"]
[null,null,"Noreen","Flagg","OmniCo","Slovakia"]
[null,null,"Stormy","Schumacher","General Services Corporation","Slovakia"]
[null,null,"Izabella","Lopes","Shinra Electric Power Company","Slovakia"]
[null,null,"Alvie","Booth","Wayne Enterprises","Solomon Islands"]
[null,null,"Deven","Russ","The Queen Victoria","Solomon Islands"]
[null,null,"Philip","Branson","Wernham Hogg","Somalia"]
[null,null,"Kaylen","Crowell","Ajax Corporation","Somalia"]
[null,null,"Heriberto","Hoffmann","Quark Industries","Somalia"]
[null,null,"Johnnie","Ahern","Kumatsu Motors","South Africa"]
[null,null,"Leandra","Motley","Edgars Industries","South Sudan"]
[null,null,"Kimberley","Guess","Blarg Factory","Spain"]
[null,null,"Kabibe","Benner","Wayne Enterprises","Sri Lanka"]
[null,null,"Mitchell","Villa","Jupiter Mining Corporation","Sudan"]
[null,null,"Melody","Medeiros","Demo Inc.","Sudan"]
[null,null,"Silvia","Ledoux","Slate Rock and Gravel Company","Swaziland"]
[null,null,"Kioko","Cyr","Atlantic International Airlines","Switzerland"]
[null,null,"Blossom","Kraft","Columbia Airlines","Switzerland"]
[null,null,"Clarence","Harper","QWERTY Logistics","Syria"]
[null,null,"Jaydin","Norris","Flowers By Irene","Tajikistan"]
[null,null,"Kamari","Cartwright","Acme Corp","Tajikistan"]
[null,null,"Brandi","Willett","Liandri Mining Corporation","Thailand"]
[null,null,"Yoselin","Pritchard","Gizmonic Institute","Thailand"]
[null,null,"Kierra","Hassell","Springfield Nuclear Power Plant","The Bahamas"]
[null,null,"Denis","Buxton","Blammo Corp","The Bahamas"]
[null,null,"Bryanna","Babb","Massive Dynamic","Togo"]
[null,null,"Rochelle","Gulley","Caliban Industries","Togo"]
[null,null,"Eternity","Moya","The Dot Grill","Tonga"]
[null,null,"Jonah","Meyers","Thatherton Fuels","Turkey"]
[null,null,"Emma","Roussel","Hishii Industries","Turkey"]
[null,null,"Shelbie","Torrez","Universal Exports","Turkey"]
[null,null,"Aldan","Epstein","BLAND Corporation","Turkmenistan"]
[null,null,"Ian","Cardenas","Atlantic Corporation","United Arab Emirates"]
[null,null,"Ivan","Rawlins","Trans Continental Airlines","United Kingdom"]
[null,null,"Roxana","Groves","Charles Townsend Agency","Uzbekistan"]
[null,null,"Wilma","Hawkins","Columbia Airlines","Uzbekistan"]
[null,null,"Kelton","Ritter","U.S. Robotics and Mechanical Men","Zambia"]
[null,null,"Annalise","Dickerson","Brown Streak Railroad","Zimbabwe"]

{"sheet":"Sheet2","index":1,"n_rows":214,"n_cols":6,"rows_kept":214,"cut":false,"hidden":false,"merged":[]}
[]
["#",null,"First Name","Last Name","Company Name","Country"]
[1,null,{"$f":"IFERROR(INDEX(Table2[],$A$3+ROW(A1)-1,COLUMN((A1))),\"\")","v":"Homer"},{"$f":"IFERROR(INDEX(Table2[],$A$3+ROW(B1)-1,COLUMN((B1))),\"\")","v":"Dayton"},{"$f":"IFERROR(INDEX(Table2[],$A$3+ROW(C1)-1,COLUMN((C1))),\"\")","v":"Quantum Airlines"},{"$f":"IFERROR(INDEX(Table2[],$A$3+ROW(D1)-1,COLUMN((D1))),\"\")","v":"Albania"}]
[{"$f":"A3+1","v":2},null,{"$f":"IFERROR(INDEX(Table2[],$A$3+ROW(A2)-1,COLUMN((A2))),\"\")","v":"Raekwon"},{"$f":"IFERROR(INDEX(Table2[],$A$3+ROW(B2)-1,COLUMN((B2))),\"\")","v":"Irons"},{"$f":"IFERROR(INDEX(Table2[],$A$3+ROW(C2)-1,COLUMN((C2))),\"\")","v":"Springfield Nuclear Power Plant"},{"$f":"IFERROR(INDEX(Table2[],$A$3+ROW(D2)-1,COLUMN((D2))),\"\")","v":"Algeria"}]
[{"$f":"A4+1","v":3},null,{"$f":"IFERROR(INDEX(Table2[],$A$3+ROW(A3)-1,COLUMN((A3))),\"\")","v":"Darien"},{"$f":"IFERROR(INDEX(Table2[],$A$3+ROW(B3)-1,COLUMN((B3))),\"\")","v":"Osullivan"},{"$f":"IFERROR(INDEX(Table2[],$A$3+ROW(C3)-1,COLUMN((C3))),\"\")","v":"Hishii Industries"},{"$f":"IFERROR(INDEX(Table2[],$A$3+ROW(D3)-1,COLUMN((D3))),\"\")","v":"Andorra"}]
[4,null,{"$f":"IFERROR(INDEX(Table2[],$A$3+ROW(A4)-1,COLUMN((A4))),\"\")","v":"Talan"},{"$f":"IFERROR(INDEX(Table2[],$A$3+ROW(B4)-1,COLUMN((B4))),\"\")","v":"Arce"},{"$f":"IFERROR(INDEX(Table2[],$A$3+ROW(C4)-1,COLUMN((C4))),\"\")","v":"North Central Positronics"},{"$f":"IFERROR(INDEX(Table2[],$A$3+ROW(D4)-1,COLUMN((D4))),\"\")","v":"Antigua and Barbuda"}]
[5,null,{"$f":"IFERROR(INDEX(Table2[],$A$3+ROW(A5)-1,COLUMN((A5))),\"\")","v":"Kristian"},{"$f":"IFERROR(INDEX(Table2[],$A$3+ROW(B5)-1,COLUMN((B5))),\"\")","v":"Delarosa"},{"$f":"IFERROR(INDEX(Table2[],$A$3+ROW(C5)-1,COLUMN((C5))),\"\")","v":"QWERTY Logistics"},{"$f":"IFERROR(INDEX(Table2[],$A$3+ROW(D5)-1,COLUMN((D5))),\"\")","v":"Armenia"}]
[6,null,{"$f":"IFERROR(INDEX(Table2[],$A$3+ROW(A6)-1,COLUMN((A6))),\"\")","v":"Dillion"},{"$f":"IFERROR(INDEX(Table2[],$A$3+ROW(B6)-1,COLUMN((B6))),\"\")","v":"Mcdonough"},{"$f":"IFERROR(INDEX(Table2[],$A$3+ROW(C6)-1,COLUMN((C6))),\"\")","v":"Thrift Bank"},{"$f":"IFERROR(INDEX(Table2[],$A$3+ROW(D6)-1,COLUMN((D6))),\"\")","v":"Armenia"}]
[7,null,{"$f":"IFERROR(INDEX(Table2[],$A$3+ROW(A7)-1,COLUMN((A7))),\"\")","v":"Luneda"},{"$f":"IFERROR(INDEX(Table2[],$A$3+ROW(B7)-1,COLUMN((B7))),\"\")","v":"Gee"},{"$f":"IFERROR(INDEX(Table2[],$A$3+ROW(C7)-1,COLUMN((C7))),\"\")","v":"Sixty Second Avenue"},{"$f":"IFERROR(INDEX(Table2[],$A$3+ROW(D7)-1,COLUMN((D7))),\"\")","v":"Armenia"}]
[8,null,{"$f":"IFERROR(INDEX(Table2[],$A$3+ROW(A8)-1,COLUMN((A8))),\"\")","v":"Mahsa"},{"$f":"IFERROR(INDEX(Table2[],$A$3+ROW(B8)-1,COLUMN((B8))),\"\")","v":"Belcher"},{"$f":"IFERROR(INDEX(Table2[],$A$3+ROW(C8)-1,COLUMN((C8))),\"\")","v":"Atlantic Northern"},{"$f":"IFERROR(INDEX(Table2[],$A$3+ROW(D8)-1,COLUMN((D8))),\"\")","v":"Australia"}]
[9,null,{"$f":"IFERROR(INDEX(Table2[],$A$3+ROW(A9)-1,COLUMN((A9))),\"\")","v":"Nikki"},{"$f":"IFERROR(INDEX(Table2[],$A$3+ROW(B9)-1,COLUMN((B9))),\"\")","v":"Carney"},{"$f":"IFERROR(INDEX(Table2[],$A$3+ROW(C9)-1,COLUMN((C9))),\"\")","v":"Blammo Corp"},{"$f":"IFERROR(INDEX(Table2[],$A$3+ROW(D9)-1,COLUMN((D9))),\"\")","v":"Australia"}]
[10,null,{"$f":"IFERROR(INDEX(Table2[],$A$3+ROW(A10)-1,COLUMN((A10))),\"\")","v":"Dwain"},{"$f":"IFERROR(INDEX(Table2[],$A$3+ROW(B10)-1,COLUMN((B10))),\"\")","v":"Sandlin"},{"$f":"IFERROR(INDEX(Table2[],$A$3+ROW(C10)-1,COLUMN((C10))),\"\")","v":"LexCorp"},{"$f":"IFERROR(INDEX(Table2[],$A$3+ROW(D10)-1,COLUMN((D10))),\"\")","v":"Azerbaijan"}]
[]
[null,null,"First Name","Last Name","Company Name","Country"]
[null,null,"Homer","Dayton","Quantum Airlines","Albania"]
[null,null,"Raekwon","Irons","Springfield Nuclear Power Plant","Algeria"]
[null,null,"Darien","Osullivan","Hishii Industries","Andorra"]
[null,null,"Talan","Arce","North Central Positronics","Antigua and Barbuda"]
[null,null,"Kristian","Delarosa","QWERTY Logistics","Armenia"]
[null,null,"Dillion","Mcdonough","Thrift Bank","Armenia"]
[null,null,"Luneda","Gee","Sixty Second Avenue","Armenia"]
[null,null,"Mahsa","Belcher","Atlantic Northern","Australia"]
[null,null,"Nikki","Carney","Blammo Corp","Australia"]
[null,null,"Dwain","Sandlin","LexCorp","Azerbaijan"]
[null,null,"Fonda","Nowlin","InGen Corporation","Bahrain"]
[null,null,"Kaylin","Gifford","Soar Airlines","Bahrain"]
[null,null,"Kester","Moen","Trans Global Airlines","Barbados"]
[null,null,"Marlena","Barker","Axis Chemical Co.","Belarus"]
[null,null,"Joslyn","Wu","Oceanic Airlines","Benin"]
[null,null,"Jonah","Cason","Buy and Large Corporation","Bhutan"]
[null,null,"Falkner","Draper","Chez Quis","Bhutan"]
[null,null,"Jaleel","Frye","Sonky Rubber Goods","Bolivia"]
[null,null,"Walker","Michaels","Trans Regional Airlines","Bolivia"]
[null,null,"Beau","Styles","Zorin Industries","Bosnia and Herzegovina"]
[null,null,"Tyrone","Freund","Cyberdyne Systems","Bosnia and Herzegovina"]
[null,null,"Gaige","Ainsworth","Onion Pacific Railroad","Botswana"]
[null,null,"Chava","Mcvay","Initech","Bulgaria"]
[null,null,"Drew","Kelsey","Three Waters","Burkina Faso"]
[null,null,"Petra","Beavers","Primatech","Burundi"]
[null,null,"Ronnie","Gable","Edgars Industries","Canada"]
[null,null,"Winnie","Belton","QuantCo","Central African Republic"]
[null,null,"Ernie","Ramon","Wernham Hogg","Chad"]
[null,null,"Willis","Head","Gadgetron","Chad"]
[null,null,"Britney","Mull","KrebStar","Chad"]
[null,null,"Harding","Vazquez","Atlantic Northern","Chile"]
[null,null,"Vester","Stack","North Central Positronics","China"]
[null,null,"Wyatt","Pacheco","Mainway Toys","Costa Rica"]
[null,null,"Roberta","Ibarra","Globex Corporation","Cote d'Ivoire"]
[null,null,"Ellard","Griswold","The Hanso Foundation","Cote d'Ivoire"]
[null,null,"Abia","Yi","Blarg Factory","Croatia"]
[null,null,"Cece","Sousa","Northern & Southern Railway","Cuba"]
[null,null,"Deanne","Coyle","Sonky Rubber Goods","Cyprus"]
[null,null,"Kame","Burnside","Shinra Electric Power Company","Czech Republic"]
[null,null,"Brian","Bullock","Colonial Movers","Denmark"]
[null,null,"Lona","Saxton","North Central Positronics","Djibouti"]
[null,null,"Shannon","Moody","Wallaby Airlines","Dominica"]
[null,null,"Aldan","Squires","Onion Pacific Railroad","Dominican Republic"]
[null,null,"Chinue","Sandoval","Ankh-Sto Associates","Dominican Republic"]
[null,null,"Magnolia","Royer","North Central Positronics","East Timor"]
[null,null,"Bryon","Dodds","Extensive Enterprise","Ecuador"]
[null,null,"Brisa","Sawyers","Northern & Southern Railway","Egypt"]
[null,null,"Freddie","Guess","Tip Top Cafe","Egypt"]
[null,null,"Jami","Logsdon","KrebStar","El Salvador"]
[null,null,"Filomena","Meadows","Wallaby Airlines","El Salvador"]
[null,null,"Findlay","Browne","Slate Rock and Gravel Company","El Salvador"]
[null,null,"Emiko","Mayer","Liandri Mining Corporation","Equatorial Guinea"]
[null,null,"Keiko","Bledsoe","Sirius Cybernetics Corporation","Eritrea"]
[null,null,"Caden","Mckeown","Water and Power","Ethiopia"]
[null,null,"Chad","Daniels","Fabrikam Corporation","Ethiopia"]
[null,null,"Berry","Parnell","Canada World Airways","Federated States of Micronesia"]
[null,null,"Jordon","Underwood","Extensive Enterprise","Federated States of Micronesia"]
[null,null,"Kilenya","Duval","Vandelay Industries","Federated States of Micronesia"]
[null,null,"Gabriela","Grantham","TranCon Airways","Fiji"]
[null,null,"Savana","Pinson","Nordyne Defense Dynamics","France"]
[null,null,"Mervyn","Simonson","Paradise Airlines","France"]
[null,null,"Louie","Bartley","Sirius Cybernetics Corporation","Gabon"]
[null,null,"Kalyca","Rand","NorthAm Robotics","Gabon"]
[null,null,"Vernon","Bateman","Colonial Movers","Gabon"]
[null,null,"Buddy","Fredericks","Global Airways","Gambia"]
[null,null,"Jaylynn","Higdon","Transworld Consortium","Georgia"]
[null,null,"Paige","Cornwell","TetraCorp","Grenada"]
[null,null,"Gino","Hurst","Keedsler Motors","Guatemala"]
[null,null,"Codie","Acker","Colonial Movers","Guinea"]
[null,null,"Cheryl","Allen","Columbia Airlines","Guinea"]
[null,null,"Koby","Coward","Foo Bars","Guinea-Bissau"]
[null,null,"Leila","Witte","Chez Quis","Guyana"]
[null,null,"Ajala","Battle","Culdee Fell Railway","Guyana"]
[null,null,"Lazaro","Bravo","Edgars Industries","Haiti"]
[null,null,"Everley","Archie","Smith and Co.","Haiti"]
[null,null,"Margie","Stuckey","Buy and Large Corporation","Haiti"]
[null,null,"Verona","Shephard","Primatech","Hungary"]
[null,null,"Axel","Waugh","Charles Townsend Agency","Iceland"]
[null,null,"Bikita","Janssen","VersaLife Corporation","Indonesia"]
[null,null,"Judy","Turney","Roxxon","Indonesia"]
[null,null,"Quincy","Boyd","Ewing Oil","Iran"]
[null,null,"Bob","Potter","Parrish Communications","Israel"]
[null,null,"Scott","Metzler","North Central Positronics","Israel"]
[null,null,"Arama","Neel","Northern & Southern Railway","Israel"]
[null,null,"Simone","Wisniewski","Smith and Co.","Israel"]
[null,null,"Susie","Daly","Tip Top Cafe","Israel"]
[null,null,"Giovanny","Starling","Cathedral Software","Jordan"]
[null,null,"Marceline","Simpson","Caliban Industries","Jordan"]
[null,null,"Milan","Babb","Edgars Industries","Kazakhstan"]
[null,null,"Holiday","Alexander","Demo Company","Kenya"]
[null,null,"Kalinda","Jeter","Massive Dynamic","Korea (North)"]
[null,null,"Mauricio","Boykin","The Dot Grill","Korea (South)"]
[null,null,"Mekhi","Mayhew","North Western Railway","Kuwait"]
[null,null,"Clarence","Dietz","Industrial Automation","Laos"]
[null,null,"Darla","Crutcher","Trans Global Airlines","Lebanon"]
[null,null,"Daisha","Kyle","Mishima Zaibatsu","Lebanon"]
[null,null,"Addie","Sorensen","Sheinhardt Wig Company","Lesotho"]
[null,null,"Cira","Herr","Massive Dynamic","Liberia"]
[null,null,"Ivana","Valerio","Data Systems","Lithuania"]
[null,null,"Sharlene","Florez","Universal Exports","Lithuania"]
[null,null,"Meyer","Amaral","Fake Brothers","Lithuania"]
[null,null,"Hadley","Tallent","Sombra Corporation","Luxembourg"]
[null,null,"Marge","Reyna","Rouster and Sideways","Madagascar"]
[null,null,"Ron","Laws","Allied Biscuit","Madagascar"]
[null,null,"Hanley","Gable","Virtucon","Maldives"]
[null,null,"Misty","Vanover","St. Anky Beer","Mali"]
[null,null,"Selma","Waldrop","Ewing Oil","Malta"]
[null,null,"Van","Sessions","Slate Rock and Gravel Company","Mauritania"]
[null,null,"Adah","Boisvert","Globex Corporation","Mauritania"]
[null,null,"Ron","Cochran","Transworld Consortium","Mauritania"]
[null,null,"Sherlyn","Craft","Umbrella Corporation","Mauritania"]
[null,null,"Wayland","Gunderson","McMahon and Tate","Mauritius"]
[null,null,"Leatrix","Polk","Cathedral Software","Mauritius"]
[null,null,"Mekelle","Beauregard","Thrift Bank","Mauritius"]
[null,null,"Kalare","Hennessey","Minuteman Cafe","Mexico"]
[null,null,"Ansley","Magana","Biffco","Moldova"]
[null,null,"Eliza","Pack","Canada World Airways","Monaco"]
[null,null,"Elda","Burk","Trans Regional Airlines","Montenegro"]
[null,null,"Bernardine","Oldham","Carrys Candles","Morocco"]
[null,null,"Johnathan","Locke","Biffco","Morocco"]
[null,null,"Adara","Liu","Petrox Oil Company","Myanmar (Burma)"]
[null,null,"Madalynn","Coward","Uplink Corporation","Namibia"]
[null,null,"Mahsa","Hiatt","Allied Biscuit","Nauru"]
[null,null,"Pierce","Bollinger","Industrial Automation","Nepal"]
[null,null,"Orin","Billings","Trans Global Airlines","Nepal"]
[null,null,"Hue","Main","Blue Sun Corporation","Niger"]
[null,null,"Eloise","Vargas","General Forge and Foundry","Niger"]
[null,null,"Colin","Osburn","Shinra Electric Power Company","Norway"]
[null,null,"Nessa","Word","Trade Federation","Norway"]
[null,null,"Jayson","Goetz","North Central Positronics","Panama"]
[null,null,"Leander","Galvin","Nordyne Defense Dynamics","Paraguay"]
[null,null,"Ada","Wick","Trans Allied Airlines","Philippines"]
[null,null,"Delbert","Gillespie","North Western Railway","Philippines"]
[null,null,"Lamar","Dietrich","Zevo Toys","Poland"]
[null,null,"Nigel","Boren","United Robotronics","Portugal"]
[null,null,"Moesha","Gragg","Atlantic Corporation","Qatar"]
[null,null,"Louella","Nguyen","Corellian Engineering Corporation","Qatar"]
[null,null,"Maximus","Orlando","Culdee Fell Railway","Qatar"]
[null,null,"Jeri","Picard","Spade and Archer","Russia"]
[null,null,"Malinda","Cassell","Mainco","Russia"]
[null,null,"Ady","Brinkley","Vandelay Industries","Russia"]
[null,null,"Sylvester","Otto","Curious Goods","Russia"]
[null,null,"Jevon","Locklear","Canada World Airways","Rwanda"]
[null,null,"Claudine","Akin","Initech","Rwanda"]
[null,null,"Cassidy","Barrows","Union Aerospace Corporation","Saint Kitts and Nevis"]
[null,null,"Bela","Clay","Massive Dynamic","Saint Kitts and Nevis"]
[null,null,"Chaz","Dixon","Zorin Industries","Saint Lucia"]
[null,null,"Jaylin","Hope","Praxis Corporation","Saint Vincent and the Grenadines"]
[null,null,"Genesis","Delossantos","Zorg Industries","Saint Vincent and the Grenadines"]
[null,null,"Kate","Whelan","Trans Pacific Airlines","Samoa"]
[null,null,"Kester","Howard","BLAND Corporation","Samoa"]
[null,null,"Lauretta","Cross","Zorg Industries","San Marino"]
[null,null,"Kaylyn","Cranford","Minco","Sao Tome and Principe"]
[null,null,"Lilo","Higdon","Blammo Corp","Saudi Arabia"]
[null,null,"Jon","Witte","TriOptimum Corporation","Saudi Arabia"]
[null,null,"Adabel","Alford","Jupiter Mining Corporation","Senegal"]
[null,null,"Ardith","Leon","CC Corporation","Serbia"]
[null,null,"Mahalah","Ricker","The Dot Grill","Seychelles"]
[null,null,"Agola","Speight","Trade Federation","Sierra Leone"]
[null,null,"Kolina","Cartwright","McMahon and Tate","Sierra Leone"]
[null,null,"Lisle","Saylor","General Products","Singapore"]
[null,null,"Merle","Cyr","Acme Corp","Singapore"]
[null,null,"Kieran","House","Brown Streak Railroad","Slovakia"]
[null,null,"Noreen","Flagg","OmniCo","Slovakia"]
[null,null,"Stormy","Schumacher","General Services Corporation","Slovakia"]
[null,null,"Izabella","Lopes","Shinra Electric Power Company","Slovakia"]
[null,null,"Alvie","Booth","Wayne Enterprises","Solomon Islands"]
[null,null,"Deven","Russ","The Queen Victoria","Solomon Islands"]
[null,null,"Philip","Branson","Wernham Hogg","Somalia"]
[null,null,"Kaylen","Crowell","Ajax Corporation","Somalia"]
[null,null,"Heriberto","Hoffmann","Quark Industries","Somalia"]
[null,null,"Johnnie","Ahern","Kumatsu Motors","South Africa"]
[null,null,"Leandra","Motley","Edgars Industries","South Sudan"]
[null,null,"Kimberley","Guess","Blarg Factory","Spain"]
[null,null,"Kabibe","Benner","Wayne Enterprises","Sri Lanka"]
[null,null,"Mitchell","Villa","Jupiter Mining Corporation","Sudan"]
[null,null,"Melody","Medeiros","Demo Inc.","Sudan"]
[null,null,"Silvia","Ledoux","Slate Rock and Gravel Company","Swaziland"]
[null,null,"Kioko","Cyr","Atlantic International Airlines","Switzerland"]
[null,null,"Blossom","Kraft","Columbia Airlines","Switzerland"]
[null,null,"Clarence","Harper","QWERTY Logistics","Syria"]
[null,null,"Jaydin","Norris","Flowers By Irene","Tajikistan"]
[null,null,"Kamari","Cartwright","Acme Corp","Tajikistan"]
[null,null,"Brandi","Willett","Liandri Mining Corporation","Thailand"]
[null,null,"Yoselin","Pritchard","Gizmonic Institute","Thailand"]
[null,null,"Kierra","Hassell","Springfield Nuclear Power Plant","The Bahamas"]
[null,null,"Denis","Buxton","Blammo Corp","The Bahamas"]
[null,null,"Bryanna","Babb","Massive Dynamic","Togo"]
[null,null,"Rochelle","Gulley","Caliban Industries","Togo"]
[null,null,"Eternity","Moya","The Dot Grill","Tonga"]
[null,null,"Jonah","Meyers","Thatherton Fuels","Turkey"]
[null,null,"Emma","Roussel","Hishii Industries","Turkey"]
[null,null,"Shelbie","Torrez","Universal Exports","Turkey"]
[null,null,"Aldan","Epstein","BLAND Corporation","Turkmenistan"]
[null,null,"Ian","Cardenas","Atlantic Corporation","United Arab Emirates"]
[null,null,"Ivan","Rawlins","Trans Continental Airlines","United Kingdom"]
[null,null,"Roxana","Groves","Charles Townsend Agency","Uzbekistan"]
[null,null,"Wilma","Hawkins","Columbia Airlines","Uzbekistan"]
[null,null,"Kelton","Ritter","U.S. Robotics and Mechanical Men","Zambia"]
[null,null,"Annalise","Dickerson","Brown Streak Railroad","Zimbabwe"]

{"sheet":"Sheet3","index":2,"n_rows":214,"n_cols":6,"rows_kept":214,"cut":false,"hidden":false,"merged":[]}
[]
["#",null,"First Name","Last Name","x","y"]
[11,null,{"$f":"IFERROR(INDEX(Table24[],$A$3+ROW(A1)-1,COLUMN((A1))),\"\")","v":"Aldan"},{"$f":"IFERROR(INDEX(Table24[],$A$3+ROW(B1)-1,COLUMN((B1))),\"\")","v":"Epstein"},{"$f":"IFERROR(INDEX(Table24[],$A$3+ROW(C1)-1,COLUMN((C1))),\"\")","v":56},{"$f":"IFERROR(INDEX(Table24[],$A$3+ROW(D1)-1,COLUMN((D1))),\"\")","v":13}]
[{"$f":"A3+1","v":12},null,{"$f":"IFERROR(INDEX(Table24[],$A$3+ROW(A2)-1,COLUMN((A2))),\"\")","v":"Alvie"},{"$f":"IFERROR(INDEX(Table24[],$A$3+ROW(B2)-1,COLUMN((B2))),\"\")","v":"Booth"},{"$f":"IFERROR(INDEX(Table24[],$A$3+ROW(C2)-1,COLUMN((C2))),\"\")","v":16},{"$f":"IFERROR(INDEX(Table24[],$A$3+ROW(D2)-1,COLUMN((D2))),\"\")","v":41}]
[{"$f":"A4+1","v":13},null,{"$f":"IFERROR(INDEX(Table24[],$A$3+ROW(A3)-1,COLUMN((A3))),\"\")","v":"Annalise"},{"$f":"IFERROR(INDEX(Table24[],$A$3+ROW(B3)-1,COLUMN((B3))),\"\")","v":"Dickerson"},{"$f":"IFERROR(INDEX(Table24[],$A$3+ROW(C3)-1,COLUMN((C3))),\"\")","v":29},{"$f":"IFERROR(INDEX(Table24[],$A$3+ROW(D3)-1,COLUMN((D3))),\"\")","v":46}]
[14,null,{"$f":"IFERROR(INDEX(Table24[],$A$3+ROW(A4)-1,COLUMN((A4))),\"\")","v":"Ansley"},{"$f":"IFERROR(INDEX(Table24[],$A$3+ROW(B4)-1,COLUMN((B4))),\"\")","v":"Magana"},{"$f":"IFERROR(INDEX(Table24[],$A$3+ROW(C4)-1,COLUMN((C4))),\"\")","v":24},{"$f":"IFERROR(INDEX(Table24[],$A$3+ROW(D4)-1,COLUMN((D4))),\"\")","v":90}]
[15,null,{"$f":"IFERROR(INDEX(Table24[],$A$3+ROW(A5)-1,COLUMN((A5))),\"\")","v":"Arama"},{"$f":"IFERROR(INDEX(Table24[],$A$3+ROW(B5)-1,COLUMN((B5))),\"\")","v":"Neel"},{"$f":"IFERROR(INDEX(Table24[],$A$3+ROW(C5)-1,COLUMN((C5))),\"\")","v":46},{"$f":"IFERROR(INDEX(Table24[],$A$3+ROW(D5)-1,COLUMN((D5))),\"\")","v":22}]
[16,null,{"$f":"IFERROR(INDEX(Table24[],$A$3+ROW(A6)-1,COLUMN((A6))),\"\")","v":"Ardith"},{"$f":"IFERROR(INDEX(Table24[],$A$3+ROW(B6)-1,COLUMN((B6))),\"\")","v":"Leon"},{"$f":"IFERROR(INDEX(Table24[],$A$3+ROW(C6)-1,COLUMN((C6))),\"\")","v":21},{"$f":"IFERROR(INDEX(Table24[],$A$3+ROW(D6)-1,COLUMN((D6))),\"\")","v":35}]
[17,null,{"$f":"IFERROR(INDEX(Table24[],$A$3+ROW(A7)-1,COLUMN((A7))),\"\")","v":"Axel"},{"$f":"IFERROR(INDEX(Table24[],$A$3+ROW(B7)-1,COLUMN((B7))),\"\")","v":"Waugh"},{"$f":"IFERROR(INDEX(Table24[],$A$3+ROW(C7)-1,COLUMN((C7))),\"\")","v":92},{"$f":"IFERROR(INDEX(Table24[],$A$3+ROW(D7)-1,COLUMN((D7))),\"\")","v":63}]
[18,null,{"$f":"IFERROR(INDEX(Table24[],$A$3+ROW(A8)-1,COLUMN((A8))),\"\")","v":"Beau"},{"$f":"IFERROR(INDEX(Table24[],$A$3+ROW(B8)-1,COLUMN((B8))),\"\")","v":"Styles"},{"$f":"IFERROR(INDEX(Table24[],$A$3+ROW(C8)-1,COLUMN((C8))),\"\")","v":5},{"$f":"IFERROR(INDEX(Table24[],$A$3+ROW(D8)-1,COLUMN((D8))),\"\")","v":60}]
[19,null,{"$f":"IFERROR(INDEX(Table24[],$A$3+ROW(A9)-1,COLUMN((A9))),\"\")","v":"Bela"},{"$f":"IFERROR(INDEX(Table24[],$A$3+ROW(B9)-1,COLUMN((B9))),\"\")","v":"Clay"},{"$f":"IFERROR(INDEX(Table24[],$A$3+ROW(C9)-1,COLUMN((C9))),\"\")","v":84},{"$f":"IFERROR(INDEX(Table24[],$A$3+ROW(D9)-1,COLUMN((D9))),\"\")","v":91}]
[20,null,{"$f":"IFERROR(INDEX(Table24[],$A$3+ROW(A10)-1,COLUMN((A10))),\"\")","v":"Bernardine"},{"$f":"IFERROR(INDEX(Table24[],$A$3+ROW(B10)-1,COLUMN((B10))),\"\")","v":"Oldham"},{"$f":"IFERROR(INDEX(Table24[],$A$3+ROW(C10)-1,COLUMN((C10))),\"\")","v":49},{"$f":"IFERROR(INDEX(Table24[],$A$3+ROW(D10)-1,COLUMN((D10))),\"\")","v":87}]
[]
[null,null,"First Name","Last Name","x","y"]
[null,null,"Abia","Yi",67,8]
[null,null,"Ada","Wick",6,90]
[null,null,"Adabel","Alford",14,31]
[null,null,"Adah","Boisvert",94,74]
[null,null,"Adara","Liu",43,80]
[null,null,"Addie","Sorensen",21,65]
[null,null,"Ady","Brinkley",57,90]
[null,null,"Agola","Speight",74,61]
[null,null,"Ajala","Battle",45,42]
[null,null,"Aldan","Squires",57,92]
[null,null,"Aldan","Epstein",56,13]
[null,null,"Alvie","Booth",16,41]
[null,null,"Annalise","Dickerson",29,46]
[null,null,"Ansley","Magana",24,90]
[null,null,"Arama","Neel",46,22]
[null,null,"Ardith","Leon",21,35]
[null,null,"Axel","Waugh",92,63]
[null,null,"Beau","Styles",5,60]
[null,null,"Bela","Clay",84,91]
[null,null,"Bernardine","Oldham",49,87]
[null,null,"Berry","Parnell",99,70]
[null,null,"Bikita","Janssen",29,48]
[null,null,"Blossom","Kraft",92,31]
[null,null,"Bob","Potter",40,48]
[null,null,"Brandi","Willett",6,87]
[null,null,"Brian","Bullock",52,93]
[null,null,"Brisa","Sawyers",40,29]
[null,null,"Britney","Mull",18,82]
[null,null,"Bryanna","Babb",43,49]
[null,null,"Bryon","Dodds",62,98]
[null,null,"Buddy","Fredericks",30,56]
[null,null,"Caden","Mckeown",76,91]
[null,null,"Cassidy","Barrows",41,3]
[null,null,"Cece","Sousa",37,77]
[null,null,"Chad","Daniels",96,69]
[null,null,"Chava","Mcvay",80,18]
[null,null,"Chaz","Dixon",58,69]
[null,null,"Cheryl","Allen",37,34]
[null,null,"Chinue","Sandoval",95,27]
[null,null,"Cira","Herr",40,72]
[null,null,"Clarence","Dietz",75,6]
[null,null,"Clarence","Harper",44,11]
[null,null,"Claudine","Akin",11,84]
[null,null,"Codie","Acker",41,26]
[null,null,"Colin","Osburn",67,13]
[null,null,"Daisha","Kyle",46,57]
[null,null,"Darien","Osullivan",58,20]
[null,null,"Darla","Crutcher",35,13]
[null,null,"Deanne","Coyle",77,8]
[null,null,"Delbert","Gillespie",60,7]
[null,null,"Denis","Buxton",14,1]
[null,null,"Deven","Russ",66,89]
[null,null,"Dillion","Mcdonough",21,32]
[null,null,"Drew","Kelsey",14,9]
[null,null,"Dwain","Sandlin",90,23]
[null,null,"Elda","Burk",81,4]
[null,null,"Eliza","Pack",64,48]
[null,null,"Ellard","Griswold",84,75]
[null,null,"Eloise","Vargas",95,14]
[null,null,"Emiko","Mayer",3,38]
[null,null,"Emma","Roussel",44,3]
[null,null,"Ernie","Ramon",48,91]
[null,null,"Eternity","Moya",45,52]
[null,null,"Everley","Archie",93,65]
[null,null,"Falkner","Draper",41,69]
[null,null,"Filomena","Meadows",87,86]
[null,null,"Findlay","Browne",79,45]
[null,null,"Fonda","Nowlin",83,70]
[null,null,"Freddie","Guess",26,33]
[null,null,"Gabriela","Grantham",16,99]
[null,null,"Gaige","Ainsworth",48,93]
[null,null,"Genesis","Delossantos",13,36]
[null,null,"Gino","Hurst",60,16]
[null,null,"Giovanny","Starling",18,78]
[null,null,"Hadley","Tallent",45,26]
[null,null,"Hanley","Gable",81,67]
[null,null,"Harding","Vazquez",74,87]
[null,null,"Heriberto","Hoffmann",1,31]
[null,null,"Holiday","Alexander",83,15]
[null,null,"Homer","Dayton",6,21]
[null,null,"Hue","Main",44,29]
[null,null,"Ian","Cardenas",20,56]
[null,null,"Ivan","Rawlins",44,58]
[null,null,"Ivana","Valerio",60,92]
[null,null,"Izabella","Lopes",88,72]
[null,null,"Jaleel","Frye",75,77]
[null,null,"Jami","Logsdon",53,33]
[null,null,"Jaydin","Norris",62,42]
[null,null,"Jaylin","Hope",26,84]
[null,null,"Jaylynn","Higdon",80,19]
[null,null,"Jayson","Goetz",11,15]
[null,null,"Jeri","Picard",72,16]
[null,null,"Jevon","Locklear",73,13]
[null,null,"Johnathan","Locke",67,41]
[null,null,"Johnnie","Ahern",17,21]
[null,null,"Jon","Witte",24,73]
[null,null,"Jonah","Cason",43,74]
[null,null,"Jonah","Meyers",42,42]
[null,null,"Jordon","Underwood",6,73]
[null,null,"Joslyn","Wu",94,96]
[null,null,"Judy","Turney",77,16]
[null,null,"Kabibe","Benner",68,93]
[null,null,"Kalare","Hennessey",4,27]
[null,null,"Kalinda","Jeter",48,16]
[null,null,"Kalyca","Rand",89,76]
[null,null,"Kamari","Cartwright",92,59]
[null,null,"Kame","Burnside",60,1]
[null,null,"Kate","Whelan",27,26]
[null,null,"Kaylen","Crowell",56,53]
[null,null,"Kaylin","Gifford",25,64]
[null,null,"Kaylyn","Cranford",19,4]
[null,null,"Keiko","Bledsoe",46,93]
[null,null,"Kelton","Ritter",90,85]
[null,null,"Kester","Moen",25,36]
[null,null,"Kester","Howard",4,11]
[null,null,"Kieran","House",19,83]
[null,null,"Kierra","Hassell",70,14]
[null,null,"Kilenya","Duval",32,96]
[null,null,"Kimberley","Guess",44,96]
[null,null,"Kioko","Cyr",37,42]
[null,null,"Koby","Coward",61,81]
[null,null,"Kolina","Cartwright",18,47]
[null,null,"Kristian","Delarosa",38,47]
[null,null,"Lamar","Dietrich",57,30]
[null,null,"Lauretta","Cross",34,12]
[null,null,"Lazaro","Bravo",9,39]
[null,null,"Leander","Galvin",7,6]
[null,null,"Leandra","Motley",54,20]
[null,null,"Leatrix","Polk",33,94]
[null,null,"Leila","Witte",34,36]
[null,null,"Lilo","Higdon",22,40]
[null,null,"Lisle","Saylor",43,6]
[null,null,"Lona","Saxton",24,61]
[null,null,"Louella","Nguyen",42,14]
[null,null,"Louie","Bartley",51,59]
[null,null,"Luneda","Gee",15,55]
[null,null,"Madalynn","Coward",34,4]
[null,null,"Magnolia","Royer",10,28]
[null,null,"Mahalah","Ricker",5,15]
[null,null,"Mahsa","Belcher",68,72]
[null,null,"Mahsa","Hiatt",6,14]
[null,null,"Malinda","Cassell",30,75]
[null,null,"Marceline","Simpson",20,93]
[null,null,"Marge","Reyna",40,87]
[null,null,"Margie","Stuckey",88,32]
[null,null,"Marlena","Barker",28,6]
[null,null,"Mauricio","Boykin",86,51]
[null,null,"Maximus","Orlando",74,87]
[null,null,"Mekelle","Beauregard",74,89]
[null,null,"Mekhi","Mayhew",14,88]
[null,null,"Melody","Medeiros",64,48]
[null,null,"Merle","Cyr",92,20]
[null,null,"Mervyn","Simonson",25,70]
[null,null,"Meyer","Amaral",10,36]
[null,null,"Milan","Babb",38,12]
[null,null,"Misty","Vanover",52,72]
[null,null,"Mitchell","Villa",45,83]
[null,null,"Moesha","Gragg",54,16]
[null,null,"Nessa","Word",50,7]
[null,null,"Nigel","Boren",92,6]
[null,null,"Nikki","Carney",7,34]
[null,null,"Noreen","Flagg",39,84]
[null,null,"Orin","Billings",23,79]
[null,null,"Paige","Cornwell",12,65]
[null,null,"Petra","Beavers",59,2]
[null,null,"Philip","Branson",41,72]
[null,null,"Pierce","Bollinger",76,100]
[null,null,"Quincy","Boyd",73,21]
[null,null,"Raekwon","Irons",30,86]
[null,null,"Roberta","Ibarra",46,42]
[null,null,"Rochelle","Gulley",75,18]
[null,null,"Ron","Laws",50,51]
[null,null,"Ron","Cochran",70,59]
[null,null,"Ronnie","Gable",26,95]
[null,null,"Roxana","Groves",81,4]
[null,null,"Savana","Pinson",80,85]
[null,null,"Scott","Metzler",20,99]
[null,null,"Selma","Waldrop",98,73]
[null,null,"Shannon","Moody",70,3]
[null,null,"Sharlene","Florez",16,25]
[null,null,"Shelbie","Torrez",1,57]
[null,null,"Sherlyn","Craft",91,38]
[null,null,"Silvia","Ledoux",4,49]
[null,null,"Simone","Wisniewski",5,91]
[null,null,"Stormy","Schumacher",75,70]
[null,null,"Susie","Daly",95,55]
[null,null,"Sylvester","Otto",15,36]
[null,null,"Talan","Arce",53,11]
[null,null,"Tyrone","Freund",13,51]
[null,null,"Walker","Michaels",95,79]
[null,null,"Van","Sessions",26,47]
[null,null,"Wayland","Gunderson",1,100]
[null,null,"Vernon","Bateman",31,47]
[null,null,"Verona","Shephard",64,24]
[null,null,"Vester","Stack",25,50]
[null,null,"Willis","Head",86,9]
[null,null,"Wilma","Hawkins",35,56]
[null,null,"Winnie","Belton",41,52]
[null,null,"Wyatt","Pacheco",73,30]
[null,null,"Yoselin","Pritchard",47,79]

{"sheet":"Sheet4","index":3,"n_rows":207,"n_cols":6,"rows_kept":207,"cut":false,"hidden":false,"merged":[]}
[]
["#",null,"First Name","Last Name","Company Name","Country"]
[5,null,{"$f":"INDEX(Table15[],A3,0)","v":"Kristian"},"Delarosa","QWERTY Logistics","Armenia"]
[]
[]
[]
[null,null,"First Name","Last Name","Company Name","Country"]
[null,null,"Homer","Dayton","Quantum Airlines","Albania"]
[null,null,"Raekwon","Irons","Springfield Nuclear Power Plant","Algeria"]
[null,null,"Darien","Osullivan","Hishii Industries","Andorra"]
[null,null,"Talan","Arce","North Central Positronics","Antigua and Barbuda"]
[null,null,"Kristian","Delarosa","QWERTY Logistics","Armenia"]
[null,null,"Dillion","Mcdonough","Thrift Bank","Armenia"]
[null,null,"Luneda","Gee","Sixty Second Avenue","Armenia"]
[null,null,"Mahsa","Belcher","Atlantic Northern","Australia"]
[null,null,"Nikki","Carney","Blammo Corp","Australia"]
[null,null,"Dwain","Sandlin","LexCorp","Azerbaijan"]
[null,null,"Fonda","Nowlin",null,"Bahrain"]
[null,null,"Kaylin","Gifford","Soar Airlines","Bahrain"]
[null,null,"Kester","Moen","Trans Global Airlines","Barbados"]
[null,null,"Marlena","Barker","Axis Chemical Co.","Belarus"]
[null,null,"Joslyn","Wu","Oceanic Airlines","Benin"]
[null,null,"Jonah","Cason","Buy and Large Corporation","Bhutan"]
[null,null,"Falkner","Draper","Chez Quis","Bhutan"]
[null,null,"Jaleel","Frye","Sonky Rubber Goods","Bolivia"]
[null,null,"Walker","Michaels","Trans Regional Airlines","Bolivia"]
[null,null,"Beau","Styles","Zorin Industries","Bosnia and Herzegovina"]
[null,null,"Tyrone","Freund","Cyberdyne Systems","Bosnia and Herzegovina"]
[null,null,"Gaige","Ainsworth","Onion Pacific Railroad","Botswana"]
[null,null,"Chava","Mcvay","Initech","Bulgaria"]
[null,null,"Drew","Kelsey","Three Waters","Burkina Faso"]
[null,null,"Petra","Beavers","Primatech","Burundi"]
[null,null,"Ronnie","Gable","Edgars Industries","Canada"]
[null,null,"Winnie","Belton","QuantCo","Central African Republic"]
[null,null,"Ernie","Ramon","Wernham Hogg","Chad"]
[null,null,"Willis","Head","Gadgetron","Chad"]
[null,null,"Britney","Mull","KrebStar","Chad"]
[null,null,"Harding","Vazquez","Atlantic Northern","Chile"]
[null,null,"Vester","Stack","North Central Positronics","China"]
[null,null,"Wyatt","Pacheco","Mainway Toys","Costa Rica"]
[null,null,"Roberta","Ibarra","Globex Corporation","Cote d'Ivoire"]
[null,null,"Ellard","Griswold","The Hanso Foundation","Cote d'Ivoire"]
[null,null,"Abia","Yi","Blarg Factory","Croatia"]
[null,null,"Cece","Sousa","Northern & Southern Railway","Cuba"]
[null,null,"Deanne","Coyle","Sonky Rubber Goods","Cyprus"]
[null,null,"Kame","Burnside","Shinra Electric Power Company","Czech Republic"]
[null,null,"Brian","Bullock","Colonial Movers","Denmark"]
[null,null,"Lona","Saxton","North Central Positronics","Djibouti"]
[null,null,"Shannon","Moody","Wallaby Airlines","Dominica"]
[null,null,"Aldan","Squires","Onion Pacific Railroad","Dominican Republic"]
[null,null,"Chinue","Sandoval","Ankh-Sto Associates","Dominican Republic"]
[null,null,"Magnolia","Royer","North Central Positronics","East Timor"]
[null,null,"Bryon","Dodds","Extensive Enterprise","Ecuador"]
[null,null,"Brisa","Sawyers","Northern & Southern Railway","Egypt"]
[null,null,"Freddie","Guess","Tip Top Cafe","Egypt"]
[null,null,"Jami","Logsdon","KrebStar","El Salvador"]
[null,null,"Filomena","Meadows","Wallaby Airlines","El Salvador"]
[null,null,"Findlay","Browne","Slate Rock and Gravel Company","El Salvador"]
[null,null,"Emiko","Mayer","Liandri Mining Corporation","Equatorial Guinea"]
[null,null,"Keiko","Bledsoe","Sirius Cybernetics Corporation","Eritrea"]
[null,null,"Caden","Mckeown","Water and Power","Ethiopia"]
[null,null,"Chad","Daniels","Fabrikam Corporation","Ethiopia"]
[null,null,"Berry","Parnell","Canada World Airways","Federated States of Micronesia"]
[null,null,"Jordon","Underwood","Extensive Enterprise","Federated States of Micronesia"]
[null,null,"Kilenya","Duval","Vandelay Industries","Federated States of Micronesia"]
[null,null,"Gabriela","Grantham","TranCon Airways","Fiji"]
[null,null,"Savana","Pinson","Nordyne Defense Dynamics","France"]
[null,null,"Mervyn","Simonson","Paradise Airlines","France"]
[null,null,"Louie","Bartley","Sirius Cybernetics Corporation","Gabon"]
[null,null,"Kalyca","Rand","NorthAm Robotics","Gabon"]
[null,null,"Vernon","Bateman","Colonial Movers","Gabon"]
[null,null,"Buddy","Fredericks","Global Airways","Gambia"]
[null,null,"Jaylynn","Higdon","Transworld Consortium","Georgia"]
[null,null,"Paige","Cornwell","TetraCorp","Grenada"]
[null,null,"Gino","Hurst","Keedsler Motors","Guatemala"]
[null,null,"Codie","Acker","Colonial Movers","Guinea"]
[null,null,"Cheryl","Allen","Columbia Airlines","Guinea"]
[null,null,"Koby","Coward","Foo Bars","Guinea-Bissau"]
[null,null,"Leila","Witte","Chez Quis","Guyana"]
[null,null,"Ajala","Battle","Culdee Fell Railway","Guyana"]
[null,null,"Lazaro","Bravo","Edgars Industries","Haiti"]
[null,null,"Everley","Archie","Smith and Co.","Haiti"]
[null,null,"Margie","Stuckey","Buy and Large Corporation","Haiti"]
[null,null,"Verona","Shephard","Primatech","Hungary"]
[null,null,"Axel","Waugh","Charles Townsend Agency","Iceland"]
[null,null,"Bikita","Janssen","VersaLife Corporation","Indonesia"]
[null,null,"Judy","Turney","Roxxon","Indonesia"]
[null,null,"Quincy","Boyd","Ewing Oil","Iran"]
[null,null,"Bob","Potter","Parrish Communications","Israel"]
[null,null,"Scott","Metzler","North Central Positronics","Israel"]
[null,null,"Arama","Neel","Northern & Southern Railway","Israel"]
[null,null,"Simone","Wisniewski","Smith and Co.","Israel"]
[null,null,"Susie","Daly","Tip Top Cafe","Israel"]
[null,null,"Giovanny","Starling","Cathedral Software","Jordan"]
[null,null,"Marceline","Simpson","Caliban Industries","Jordan"]
[null,null,"Milan","Babb","Edgars Industries","Kazakhstan"]
[null,null,"Holiday","Alexander","Demo Company","Kenya"]
[null,null,"Kalinda","Jeter","Massive Dynamic","Korea (North)"]
[null,null,"Mauricio","Boykin","The Dot Grill","Korea (South)"]
[null,null,"Mekhi","Mayhew","North Western Railway","Kuwait"]
[null,null,"Clarence","Dietz","Industrial Automation","Laos"]
[null,null,"Darla","Crutcher","Trans Global Airlines","Lebanon"]
[null,null,"Daisha","Kyle","Mishima Zaibatsu","Lebanon"]
[null,null,"Addie","Sorensen","Sheinhardt Wig Company","Lesotho"]
[null,null,"Cira","Herr","Massive Dynamic","Liberia"]
[null,null,"Ivana","Valerio","Data Systems","Lithuania"]
[null,null,"Sharlene","Florez","Universal Exports","Lithuania"]
[null,null,"Meyer","Amaral","Fake Brothers","Lithuania"]
[null,null,"Hadley","Tallent","Sombra Corporation","Luxembourg"]
[null,null,"Marge","Reyna","Rouster and Sideways","Madagascar"]
[null,null,"Ron","Laws","Allied Biscuit","Madagascar"]
[null,null,"Hanley","Gable","Virtucon","Maldives"]
[null,null,"Misty","Vanover","St. Anky Beer","Mali"]
[null,null,"Selma","Waldrop","Ewing Oil","Malta"]
[null,null,"Van","Sessions","Slate Rock and Gravel Company","Mauritania"]
[null,null,"Adah","Boisvert","Globex Corporation","Mauritania"]
[null,null,"Ron","Cochran","Transworld Consortium","Mauritania"]
[null,null,"Sherlyn","Craft","Umbrella Corporation","Mauritania"]
[null,null,"Wayland","Gunderson","McMahon and Tate","Mauritius"]
[null,null,"Leatrix","Polk","Cathedral Software","Mauritius"]
[null,null,"Mekelle","Beauregard","Thrift Bank","Mauritius"]
[null,null,"Kalare","Hennessey","Minuteman Cafe","Mexico"]
[null,null,"Ansley","Magana","Biffco","Moldova"]
[null,null,"Eliza","Pack","Canada World Airways","Monaco"]
[null,null,"Elda","Burk","Trans Regional Airlines","Montenegro"]
[null,null,"Bernardine","Oldham","Carrys Candles","Morocco"]
[null,null,"Johnathan","Locke","Biffco","Morocco"]
[null,null,"Adara","Liu","Petrox Oil Company","Myanmar (Burma)"]
[null,null,"Madalynn","Coward","Uplink Corporation","Namibia"]
[null,null,"Mahsa","Hiatt","Allied Biscuit","Nauru"]
[null,null,"Pierce","Bollinger","Industrial Automation","Nepal"]
[null,null,"Orin","Billings","Trans Global Airlines","Nepal"]
[null,null,"Hue","Main","Blue Sun Corporation","Niger"]
[null,null,"Eloise","Vargas","General Forge and Foundry","Niger"]
[null,null,"Colin","Osburn","Shinra Electric Power Company","Norway"]
[null,null,"Nessa","Word","Trade Federation","Norway"]
[null,null,"Jayson","Goetz","North Central Positronics","Panama"]
[null,null,"Leander","Galvin","Nordyne Defense Dynamics","Paraguay"]
[null,null,"Ada","Wick","Trans Allied Airlines","Philippines"]
[null,null,"Delbert","Gillespie","North Western Railway","Philippines"]
[null,null,"Lamar","Dietrich","Zevo Toys","Poland"]
[null,null,"Nigel","Boren","United Robotronics","Portugal"]
[null,null,"Moesha","Gragg","Atlantic Corporation","Qatar"]
[null,null,"Louella","Nguyen","Corellian Engineering Corporation","Qatar"]
[null,null,"Maximus","Orlando","Culdee Fell Railway","Qatar"]
[null,null,"Jeri","Picard","Spade and Archer","Russia"]
[null,null,"Malinda","Cassell","Mainco","Russia"]
[null,null,"Ady","Brinkley","Vandelay Industries","Russia"]
[null,null,"Sylvester","Otto","Curious Goods","Russia"]
[null,null,"Jevon","Locklear","Canada World Airways","Rwanda"]
[null,null,"Claudine","Akin","Initech","Rwanda"]
[null,null,"Cassidy","Barrows","Union Aerospace Corporation","Saint Kitts and Nevis"]
[null,null,"Bela","Clay","Massive Dynamic","Saint Kitts and Nevis"]
[null,null,"Chaz","Dixon","Zorin Industries","Saint Lucia"]
[null,null,"Jaylin","Hope","Praxis Corporation","Saint Vincent and the Grenadines"]
[null,null,"Genesis","Delossantos","Zorg Industries","Saint Vincent and the Grenadines"]
[null,null,"Kate","Whelan","Trans Pacific Airlines","Samoa"]
[null,null,"Kester","Howard","BLAND Corporation","Samoa"]
[null,null,"Lauretta","Cross","Zorg Industries","San Marino"]
[null,null,"Kaylyn","Cranford","Minco","Sao Tome and Principe"]
[null,null,"Lilo","Higdon","Blammo Corp","Saudi Arabia"]
[null,null,"Jon","Witte","TriOptimum Corporation","Saudi Arabia"]
[null,null,"Adabel","Alford","Jupiter Mining Corporation","Senegal"]
[null,null,"Ardith","Leon","CC Corporation","Serbia"]
[null,null,"Mahalah","Ricker","The Dot Grill","Seychelles"]
[null,null,"Agola","Speight","Trade Federation","Sierra Leone"]
[null,null,"Kolina","Cartwright","McMahon and Tate","Sierra Leone"]
[null,null,"Lisle","Saylor","General Products","Singapore"]
[null,null,"Merle","Cyr","Acme Corp","Singapore"]
[null,null,"Kieran","House","Brown Streak Railroad","Slovakia"]
[null,null,"Noreen","Flagg","OmniCo","Slovakia"]
[null,null,"Stormy","Schumacher","General Services Corporation","Slovakia"]
[null,null,"Izabella","Lopes","Shinra Electric Power Company","Slovakia"]
[null,null,"Alvie","Booth","Wayne Enterprises","Solomon Islands"]
[null,null,"Deven","Russ","The Queen Victoria","Solomon Islands"]
[null,null,"Philip","Branson","Wernham Hogg","Somalia"]
[null,null,"Kaylen","Crowell","Ajax Corporation","Somalia"]
[null,null,"Heriberto","Hoffmann","Quark Industries","Somalia"]
[null,null,"Johnnie","Ahern","Kumatsu Motors","South Africa"]
[null,null,"Leandra","Motley","Edgars Industries","South Sudan"]
[null,null,"Kimberley","Guess","Blarg Factory","Spain"]
[null,null,"Kabibe","Benner","Wayne Enterprises","Sri Lanka"]
[null,null,"Mitchell","Villa","Jupiter Mining Corporation","Sudan"]
[null,null,"Melody","Medeiros","Demo Inc.","Sudan"]
[null,null,"Silvia","Ledoux","Slate Rock and Gravel Company","Swaziland"]
[null,null,"Kioko","Cyr","Atlantic International Airlines","Switzerland"]
[null,null,"Blossom","Kraft","Columbia Airlines","Switzerland"]
[null,null,"Clarence","Harper","QWERTY Logistics","Syria"]
[null,null,"Jaydin","Norris","Flowers By Irene","Tajikistan"]
[null,null,"Kamari","Cartwright","Acme Corp","Tajikistan"]
[null,null,"Brandi","Willett","Liandri Mining Corporation","Thailand"]
[null,null,"Yoselin","Pritchard","Gizmonic Institute","Thailand"]
[null,null,"Kierra","Hassell","Springfield Nuclear Power Plant","The Bahamas"]
[null,null,"Denis","Buxton","Blammo Corp","The Bahamas"]
[null,null,"Bryanna","Babb","Massive Dynamic","Togo"]
[null,null,"Rochelle","Gulley","Caliban Industries","Togo"]
[null,null,"Eternity","Moya","The Dot Grill","Tonga"]
[null,null,"Jonah","Meyers","Thatherton Fuels","Turkey"]
[null,null,"Emma","Roussel","Hishii Industries","Turkey"]
[null,null,"Shelbie","Torrez","Universal Exports","Turkey"]
[null,null,"Aldan","Epstein","BLAND Corporation","Turkmenistan"]
[null,null,"Ian","Cardenas","Atlantic Corporation","United Arab Emirates"]
[null,null,"Ivan","Rawlins","Trans Continental Airlines","United Kingdom"]
[null,null,"Roxana","Groves","Charles Townsend Agency","Uzbekistan"]
[null,null,"Wilma","Hawkins","Columbia Airlines","Uzbekistan"]
[null,null,"Kelton","Ritter","U.S. Robotics and Mechanical Men","Zambia"]
[null,null,"Annalise","Dickerson","Brown Streak Railroad","Zimbabwe"]